[Event "Championnat d'Europe de Blitz"]
[Date "2024.12.09"]
[White "Quparadze, Giga"]
[Black "Popovic, Milos T"]
[WhiteElo "2537"]
[BlackElo "2334"]
[Round "3.19"]
[Result "1-0"]
[TimeControl "180+2"]

1. e4 {[%emt 00:13:31] [%clk 00:03:03]} c5 {[%clk 00:03:03]} 2. Nf3 {[%clk
00:03:04]} Nc6 {[%emt 00:00:02] [%clk 00:03:04]} 3. Bb5 {[%clk 00:03:04]} e5
{[%emt 00:00:01] [%clk 00:03:06]} 4. O-O {[%emt 00:00:03] [%clk 00:03:03]} Nge7
{[%emt 00:00:01] [%clk 00:03:07]} 5. c3 {[%emt 00:00:01] [%clk 00:03:04]} g6
{[%clk 00:03:08]} 6. d4 {[%emt 00:00:03] [%clk 00:03:02]} cxd4 {[%emt 00:00:02]
[%clk 00:03:09]} 7. cxd4 {[%emt 00:00:01] [%clk 00:03:03]} exd4 {[%clk
00:03:10]} 8. Nxd4 {[%emt 00:00:05] [%clk 00:02:59]} Bg7 {[%emt 00:00:01] [%clk
00:03:11]} 9. Be3 {[%emt 00:00:15] [%clk 00:02:47]} O-O {[%emt 00:00:01] [%clk
00:03:11]} 10. Nc3 {[%emt 00:00:03] [%clk 00:02:47]} d5 {[%clk 00:03:13]} 11.
exd5 {[%emt 00:00:07] [%clk 00:02:42]} Nxd5 {[%emt 00:00:02] [%clk 00:03:13]}
12. Nxc6 {[%emt 00:00:04] [%clk 00:02:39]} bxc6 {[%emt 00:00:02] [%clk
00:03:14]} 13. Bxc6 {[%emt 00:00:02] [%clk 00:02:39]} Nxe3 {[%emt 00:00:02]
[%clk 00:03:14]} 14. fxe3 {[%emt 00:00:02] [%clk 00:02:39]} Rb8 {[%emt 00:00:02]
[%clk 00:03:14]} 15. Qxd8 {[%emt 00:00:22] [%clk 00:02:19]} Rxd8 {[%emt
00:00:01] [%clk 00:03:15]} 16. Bd5 {[%emt 00:00:02] [%clk 00:02:18]} Be6 {[%clk
00:03:16]} 17. Bxe6 {[%emt 00:00:15] [%clk 00:02:06]} fxe6 {[%emt 00:00:02]
[%clk 00:03:17]} 18. Rab1 {[%emt 00:00:02] [%clk 00:02:06]} Rd2 {[%emt 00:00:02]
[%clk 00:03:17]} 19. Na4 {[%emt 00:00:05] [%clk 00:02:03]} Rb4 {[%emt 00:01:29]
[%clk 00:01:50]} 20. b3 {[%emt 00:00:01] [%clk 00:02:04]} Bh6 {[%emt 00:00:14]
[%clk 00:01:38]} 21. Rbe1 {[%emt 00:00:32] [%clk 00:01:33]} Rxa2 {[%emt
00:00:25] [%clk 00:01:16]} 22. Nc5 {[%emt 00:00:05] [%clk 00:01:30]} Rb5 {[%emt
00:00:09] [%clk 00:01:09]} 23. Nxe6 {[%emt 00:00:23] [%clk 00:01:09]} Rxb3
{[%emt 00:00:01] [%clk 00:01:10]} 24. Rd1 {[%emt 00:00:04] [%clk 00:01:06]} Rb8
{[%emt 00:00:27] [%clk 00:00:46]} 25. e4 {[%emt 00:00:07] [%clk 00:01:00]} Re2
{[%emt 00:00:06] [%clk 00:00:43]} 26. Kh1 {[%emt 00:00:15] [%clk 00:00:46]} Rxe4
{[%emt 00:00:03] [%clk 00:00:43]} 27. Nc5 {[%clk 00:00:47]} Rf4 {[%emt 00:00:05]
[%clk 00:00:41]} 28. Rfe1 {[%emt 00:00:03] [%clk 00:00:47]} Bf8 {[%emt 00:00:05]
[%clk 00:00:37]} 29. Ne6 {[%emt 00:00:04] [%clk 00:00:45]} Rf7 {[%emt 00:00:03]
[%clk 00:00:36]} 30. Nd4 {[%emt 00:00:02] [%clk 00:00:44]} Rd8 {[%emt 00:00:03]
[%clk 00:00:36]} 31. Nc6 {[%emt 00:00:04] [%clk 00:00:42]} Rxd1 {[%clk
00:00:37]} 32. Rxd1 {[%emt 00:00:01] [%clk 00:00:43]} Bc5 {[%emt 00:00:01] [%clk
00:00:37]} 33. g3 {[%emt 00:00:03] [%clk 00:00:43]} Kg7 {[%emt 00:00:01] [%clk
00:00:38]} 34. Nd8 {[%emt 00:00:01] [%clk 00:00:43]} Re7 {[%emt 00:00:02] [%clk
00:00:38]} 35. Nc6 {[%emt 00:00:01] [%clk 00:00:44]} Rc7 {[%emt 00:00:01] [%clk
00:00:39]} 36. Ne5 {[%emt 00:00:02] [%clk 00:00:44]} Bb6 {[%emt 00:00:03] [%clk
00:00:39]} 37. Nf3 {[%emt 00:00:03] [%clk 00:00:42]} a5 {[%emt 00:00:02] [%clk
00:00:40]} 38. Ng5 {[%emt 00:00:01] [%clk 00:00:42]} Ra7 {[%emt 00:00:01] [%clk
00:00:41]} 39. Ne6+ {[%emt 00:00:02] [%clk 00:00:42]} Kf6 {[%emt 00:00:01] [%clk
00:00:42]} 40. Nf4 {[%clk 00:00:44]} Bc5 {[%emt 00:00:09] [%clk 00:00:34]} 41.
Rc1 {[%emt 00:00:02] [%clk 00:00:44]} Bb4 {[%emt 00:00:04] [%clk 00:00:32]} 42.
Nd5+ {[%emt 00:00:05] [%clk 00:00:41]} Ke5 {[%clk 00:00:33]} 43. Ne3 {[%emt
00:00:04] [%clk 00:00:39]} Ke4 {[%emt 00:00:02] [%clk 00:00:34]} 44. Nc4 {[%emt
00:00:02] [%clk 00:00:39]} Kd3 {[%clk 00:00:35]} 45. Nb2+ {[%emt 00:00:04] [%clk
00:00:37]} Kd2 {[%emt 00:00:01] [%clk 00:00:36]} 46. Rc4 {[%clk 00:00:38]} Rd7
{[%emt 00:00:17] [%clk 00:00:21]} 47. Na4 {[%emt 00:00:02] [%clk 00:00:38]} Kd3
{[%emt 00:00:02] [%clk 00:00:21]} 48. Rc6 {[%emt 00:00:01] [%clk 00:00:39]} Ke4
{[%emt 00:00:03] [%clk 00:00:20]} 49. Kg2 {[%emt 00:00:04] [%clk 00:00:37]} Rd2+
{[%clk 00:00:21]} 50. Kh3 {[%emt 00:00:01] [%clk 00:00:38]} Ra2 {[%clk
00:00:22]} 51. Nb6 {[%emt 00:00:01] [%clk 00:00:39]} a4 {[%emt 00:00:02] [%clk
00:00:22]} 52. Rc4+ {[%emt 00:00:01] [%clk 00:00:40]} Kd3 {[%emt 00:00:07] [%clk
00:00:18]} 53. Rxb4 {[%clk 00:00:41]} a3 {[%clk 00:00:20]} 54. Rb3+ {[%emt
00:00:04] [%clk 00:00:38]} Kc2 {[%emt 00:00:01] [%clk 00:00:21]} 55. Rf3 {[%emt
00:00:02] [%clk 00:00:39]} Rb2 {[%emt 00:00:03] [%clk 00:00:19]} 56. Rf2+ {[%emt
00:00:13] [%clk 00:00:28]} Kd3 {[%emt 00:00:08] [%clk 00:00:13]} 57. Rf3+ {[%emt
00:00:05] [%clk 00:00:25]} Ke4 {[%emt 00:00:03] [%clk 00:00:12]} 58. Rf4+ {[%emt
00:00:02] [%clk 00:00:25]} Kd3 {[%emt 00:00:02] [%clk 00:00:12]} 59. Nc4 {[%clk
00:00:26]} a2 {[%emt 00:00:10] [%clk 00:00:06]} 60. Nxb2+ {[%emt 00:00:01] [%clk
00:00:27]} Kc2 {[%clk 00:00:07]} 61. Ra4 {[%emt 00:00:02] [%clk 00:00:27]} Kxb2
{[%clk 00:00:08]} 62. Kg4 {[%clk 00:00:29]} 1-0

[Site "Europe Echecs"]

[Event "Championnat d'Europe de Blitz"]
[Date "2024.12.09"]
[White "Mastrovasilis, Dimitrios"]
[Black "Perunovic, Miodrag"]
[WhiteElo "2537"]
[BlackElo "2357"]
[Round "3.20"]
[Result "1-0"]
[TimeControl "180+2"]

1. e4 {[%emt 00:00:01] [%clk 00:03:01]} e5 {[%emt 00:00:03] [%clk 00:03:02]} 2.
Nf3 {[%emt 00:00:03] [%clk 00:03:00]} Nc6 {[%clk 00:03:03]} 3. Nc3 {[%emt
00:00:02] [%clk 00:03:00]} Nf6 {[%clk 00:03:04]} 4. d4 {[%emt 00:00:01] [%clk
00:03:01]} exd4 {[%emt 00:00:02] [%clk 00:03:04]} 5. Nxd4 {[%emt 00:00:02] [%clk
00:03:01]} Nxe4 {[%emt 00:00:01] [%clk 00:03:05]} 6. Nxe4 {[%emt 00:00:10] [%clk
00:02:53]} Qe7 {[%emt 00:00:01] [%clk 00:03:05]} 7. Bd3 {[%emt 00:00:24] [%clk
00:02:32]} Nxd4 {[%emt 00:00:04] [%clk 00:03:03]} 8. O-O {[%emt 00:00:02] [%clk
00:02:32]} d5 {[%emt 00:00:07] [%clk 00:02:58]} 9. Bc4 {[%emt 00:00:07] [%clk
00:02:27]} dxc4 {[%emt 00:00:53] [%clk 00:02:07]} 10. Qxd4 {[%emt 00:00:04]
[%clk 00:02:26]} Be6 {[%emt 00:00:10] [%clk 00:01:59]} 11. Bg5 {[%emt 00:00:21]
[%clk 00:02:06]} Qd7 {[%emt 00:00:02] [%clk 00:01:59]} 12. Qc3 {[%emt 00:00:14]
[%clk 00:01:54]} h6 {[%emt 00:00:34] [%clk 00:01:27]} 13. Bh4 {[%emt 00:00:14]
[%clk 00:01:42]} f5 {[%emt 00:00:16] [%clk 00:01:13]} 14. Rad1 {[%emt 00:00:20]
[%clk 00:01:25]} Qf7 {[%emt 00:00:28] [%clk 00:00:45]} 15. Qd4 {[%emt 00:00:16]
[%clk 00:01:12]} Be7 {[%emt 00:00:06] [%clk 00:00:41]} 16. Nc5 {[%emt 00:00:37]
[%clk 00:00:38]} Bxc5 {[%emt 00:00:07] [%clk 00:00:35]} 17. Qd8+ {[%emt
00:00:02] [%clk 00:00:33]} 1-0

[Site "Europe Echecs"]

[Event "Championnat d'Europe de Blitz"]
[Date "2024.12.09"]
[White "Pacher, Milan"]
[Black "Smeets, Jan"]
[WhiteElo "2310"]
[BlackElo "2552"]
[Round "3.21"]
[Result "0-1"]
[TimeControl "180+2"]

1. Nf3 {[%emt 00:00:01] [%clk 00:03:03]} d5 {[%emt 00:00:02] [%clk 00:03:03]} 2.
e3 {[%emt 00:00:01] [%clk 00:03:03]} Nf6 {[%emt 00:00:07] [%clk 00:02:58]} 3. b3
{[%emt 00:00:02] [%clk 00:03:03]} Bg4 {[%emt 00:00:22] [%clk 00:02:37]} 4. Bb2
{[%emt 00:00:03] [%clk 00:03:03]} e6 {[%emt 00:00:01] [%clk 00:02:38]} 5. c4
{[%emt 00:00:09] [%clk 00:02:56]} Bd6 {[%emt 00:00:19] [%clk 00:02:21]} 6. Nc3
{[%emt 00:00:03] [%clk 00:02:54]} c6 {[%emt 00:00:08] [%clk 00:02:16]} 7. h3
{[%emt 00:00:02] [%clk 00:02:54]} Bh5 {[%clk 00:02:17]} 8. g4 {[%emt 00:00:15]
[%clk 00:02:40]} Bg6 {[%emt 00:00:02] [%clk 00:02:18]} 9. Nh4 {[%emt 00:00:01]
[%clk 00:02:41]} Qe7 {[%emt 00:00:24] [%clk 00:01:56]} 10. Nxg6 {[%emt 00:00:08]
[%clk 00:02:35]} hxg6 {[%emt 00:00:02] [%clk 00:01:57]} 11. Bg2 {[%clk
00:02:35]} Ba3 {[%emt 00:00:12] [%clk 00:01:48]} 12. Qc1 {[%emt 00:00:19] [%clk
00:02:19]} Bxb2 {[%emt 00:00:01] [%clk 00:01:48]} 13. Qxb2 {[%clk 00:02:20]}
Nbd7 {[%emt 00:00:01] [%clk 00:01:49]} 14. O-O-O {[%emt 00:00:20] [%clk
00:02:02]} O-O-O {[%emt 00:00:07] [%clk 00:01:45]} 15. cxd5 {[%emt 00:00:08]
[%clk 00:01:55]} exd5 {[%emt 00:00:06] [%clk 00:01:41]} 16. Kb1 {[%emt 00:00:03]
[%clk 00:01:55]} Kb8 {[%clk 00:01:42]} 17. d4 {[%emt 00:00:12] [%clk 00:01:44]}
g5 {[%emt 00:00:11] [%clk 00:01:33]} 18. Rc1 {[%emt 00:00:10] [%clk 00:01:36]}
Nb6 {[%emt 00:00:08] [%clk 00:01:27]} 19. a4 {[%emt 00:00:07] [%clk 00:01:31]}
a5 {[%emt 00:00:11] [%clk 00:01:19]} 20. Na2 {[%emt 00:00:07] [%clk 00:01:25]}
Nc8 {[%emt 00:00:42] [%clk 00:00:40]} 21. Rc5 {[%emt 00:00:13] [%clk 00:01:13]}
Nd7 {[%emt 00:00:20] [%clk 00:00:21]} 22. Rc2 {[%emt 00:00:25] [%clk 00:00:51]}
Rde8 {[%emt 00:00:02] [%clk 00:00:22]} 23. Rhc1 {[%emt 00:00:02] [%clk
00:00:50]} Qd8 {[%emt 00:00:04] [%clk 00:00:21]} 24. b4 {[%emt 00:00:02] [%clk
00:00:50]} axb4 {[%emt 00:00:08] [%clk 00:00:14]} 25. Nxb4 {[%emt 00:00:01]
[%clk 00:00:50]} Ka8 {[%emt 00:00:06] [%clk 00:00:11]} 26. Nxc6 {[%emt 00:00:06]
[%clk 00:00:46]} bxc6 {[%emt 00:00:02] [%clk 00:00:11]} 27. Rxc6 {[%clk
00:00:47]} Qa5 {[%emt 00:00:06] [%clk 00:00:08]} 28. Bf1 {[%emt 00:00:15] [%clk
00:00:33]} Ncb6 {[%emt 00:00:03] [%clk 00:00:07]} 29. R1c5 {[%emt 00:00:09]
[%clk 00:00:26]} Nxc5 {[%emt 00:00:03] [%clk 00:00:06]} 30. dxc5 {[%clk
00:00:27]} Nxa4 {[%emt 00:00:01] [%clk 00:00:08]} 31. Qa3 {[%emt 00:00:10] [%clk
00:00:20]} Rb8+ {[%emt 00:00:01] [%clk 00:00:09]} 32. Kc2 {[%emt 00:00:03] [%clk
00:00:19]} Rhc8 {[%emt 00:00:02] [%clk 00:00:09]} 33. Ra6+ {[%emt 00:00:01]
[%clk 00:00:20]} Qxa6 {[%emt 00:00:01] [%clk 00:00:09]} 0-1

[Site "Europe Echecs"]

[Event "Championnat d'Europe de Blitz"]
[Date "2024.12.09"]
[White "Danov, Lyubomir"]
[Black "Motylev, Alexander"]
[WhiteElo "2297"]
[BlackElo "2596"]
[Round "3.22"]
[Result "0-1"]
[TimeControl "180+2"]

1. e4 {[%emt 00:00:02] [%clk 00:03:02]} c5 {[%emt 00:00:04] [%clk 00:03:03]} 2.
Nf3 {[%clk 00:03:02]} d6 {[%emt 00:00:01] [%clk 00:03:03]} 3. d4 {[%emt
00:00:02] [%clk 00:03:02]} cxd4 {[%emt 00:00:02] [%clk 00:03:04]} 4. Nxd4 {[%clk
00:03:03]} Nc6 {[%emt 00:00:04] [%clk 00:03:01]} 5. c4 {[%emt 00:00:12] [%clk
00:02:54]} g6 {[%emt 00:00:02] [%clk 00:03:01]} 6. Nc3 {[%emt 00:00:02] [%clk
00:02:53]} Nf6 {[%emt 00:00:07] [%clk 00:02:56]} 7. Be2 {[%emt 00:00:03] [%clk
00:02:52]} Nxd4 {[%emt 00:00:02] [%clk 00:02:56]} 8. Qxd4 {[%emt 00:00:01] [%clk
00:02:53]} Bg7 {[%emt 00:00:01] [%clk 00:02:57]} 9. O-O {[%emt 00:00:07] [%clk
00:02:49]} O-O {[%emt 00:00:01] [%clk 00:02:58]} 10. Qd3 {[%emt 00:00:03] [%clk
00:02:47]} Bd7 {[%emt 00:00:09] [%clk 00:02:52]} 11. Be3 {[%emt 00:00:04] [%clk
00:02:45]} a6 {[%emt 00:00:13] [%clk 00:02:41]} 12. a4 {[%emt 00:00:08] [%clk
00:02:39]} a5 {[%emt 00:00:17] [%clk 00:02:26]} 13. Rfd1 {[%emt 00:00:02] [%clk
00:02:39]} Bc6 {[%emt 00:00:03] [%clk 00:02:25]} 14. f3 {[%emt 00:00:11] [%clk
00:02:30]} Nd7 {[%emt 00:00:04] [%clk 00:02:24]} 15. Qc2 {[%emt 00:00:07] [%clk
00:02:24]} Rc8 {[%emt 00:00:18] [%clk 00:02:08]} 16. Rac1 {[%emt 00:00:03] [%clk
00:02:22]} Re8 {[%emt 00:00:05] [%clk 00:02:06]} 17. b3 {[%emt 00:00:08] [%clk
00:02:16]} Qc7 {[%emt 00:00:05] [%clk 00:02:03]} 18. Qd2 {[%emt 00:00:17] [%clk
00:02:01]} Nc5 {[%emt 00:00:05] [%clk 00:01:59]} 19. Rb1 {[%emt 00:00:06] [%clk
00:01:58]} Rcd8 {[%emt 00:00:31] [%clk 00:01:31]} 20. Nd5 {[%emt 00:00:13] [%clk
00:01:45]} Bxd5 {[%emt 00:00:09] [%clk 00:01:24]} 21. cxd5 {[%emt 00:00:02]
[%clk 00:01:45]} Rc8 {[%emt 00:00:05] [%clk 00:01:22]} 22. Bb5 {[%emt 00:00:06]
[%clk 00:01:41]} Red8 {[%emt 00:00:02] [%clk 00:01:22]} 23. Kh1 {[%emt 00:00:16]
[%clk 00:01:27]} Ra8 {[%emt 00:00:31] [%clk 00:00:52]} 24. Qe1 {[%emt 00:00:09]
[%clk 00:01:21]} Rdc8 {[%emt 00:00:04] [%clk 00:00:51]} 25. Qh4 {[%emt 00:00:20]
[%clk 00:01:01]} Bf6 {[%emt 00:00:04] [%clk 00:00:49]} 26. Qf2 {[%emt 00:00:02]
[%clk 00:01:02]} Qd8 {[%emt 00:00:06] [%clk 00:00:45]} 27. g4 {[%emt 00:00:06]
[%clk 00:00:58]} g5 {[%emt 00:00:08] [%clk 00:00:40]} 28. h4 {[%emt 00:00:04]
[%clk 00:00:55]} h6 {[%emt 00:00:01] [%clk 00:00:40]} 29. Kg2 {[%emt 00:00:04]
[%clk 00:00:53]} Qf8 {[%emt 00:00:04] [%clk 00:00:38]} 30. hxg5 {[%emt 00:00:05]
[%clk 00:00:50]} hxg5 {[%clk 00:00:39]} 31. Rh1 {[%emt 00:00:03] [%clk
00:00:49]} Qg7 {[%emt 00:00:01] [%clk 00:00:40]} 32. Rh5 {[%emt 00:00:03] [%clk
00:00:48]} Na6 {[%emt 00:00:07] [%clk 00:00:36]} 33. Bxa6 {[%emt 00:00:12] [%clk
00:00:38]} bxa6 {[%emt 00:00:04] [%clk 00:00:33]} 34. Qd2 {[%emt 00:00:02] [%clk
00:00:38]} Bc3 {[%emt 00:00:08] [%clk 00:00:28]} 35. Qd3 {[%emt 00:00:02] [%clk
00:00:37]} f6 {[%emt 00:00:03] [%clk 00:00:27]} 36. Rbh1 {[%emt 00:00:05] [%clk
00:00:34]} Be5 {[%emt 00:00:02] [%clk 00:00:28]} 37. Qd2 {[%emt 00:00:04] [%clk
00:00:31]} Rc3 {[%emt 00:00:07] [%clk 00:00:23]} 38. Bxg5 {[%emt 00:00:05] [%clk
00:00:28]} Rac8 {[%emt 00:00:02] [%clk 00:00:23]} 39. Bh6 {[%emt 00:00:14] [%clk
00:00:15]} Rc2 {[%emt 00:00:03] [%clk 00:00:23]} 0-1

[Site "Europe Echecs"]

[Event "Championnat d'Europe de Blitz"]
[Date "2024.12.09"]
[White "Baidetskyi, Valentin"]
[Black "Aizenberg, Benny"]
[WhiteElo "2519"]
[BlackElo "2425"]
[Round "3.23"]
[Result "0-1"]
[TimeControl "180+2"]

1. e4 {[%emt 00:01:05] [%clk 00:03:03]} c5 {[%clk 00:03:03]} 2. Nf3 {[%clk
00:03:04]} e6 {[%emt 00:00:02] [%clk 00:03:04]} 3. d4 {[%clk 00:03:05]} cxd4
{[%emt 00:00:01] [%clk 00:03:05]} 4. Nxd4 {[%clk 00:03:06]} Nf6 {[%emt 00:00:01]
[%clk 00:03:06]} 5. Nc3 {[%emt 00:00:03] [%clk 00:03:05]} Nc6 {[%clk 00:03:07]}
6. Nxc6 {[%emt 00:00:01] [%clk 00:03:06]} bxc6 {[%emt 00:00:01] [%clk 00:03:08]}
7. e5 {[%clk 00:03:07]} Nd5 {[%emt 00:00:01] [%clk 00:03:09]} 8. Ne4 {[%emt
00:00:01] [%clk 00:03:08]} Qc7 {[%clk 00:03:10]} 9. f4 {[%emt 00:00:01] [%clk
00:03:08]} Rb8 {[%clk 00:03:12]} 10. a3 {[%emt 00:00:02] [%clk 00:03:09]} Qb6
{[%emt 00:00:03] [%clk 00:03:10]} 11. Bd3 {[%emt 00:00:09] [%clk 00:03:02]} Ba6
{[%emt 00:00:02] [%clk 00:03:09]} 12. c4 {[%emt 00:00:17] [%clk 00:02:47]} Qd4
{[%emt 00:00:08] [%clk 00:03:03]} 13. cxd5 {[%emt 00:01:37] [%clk 00:01:12]}
Bxd3 {[%emt 00:00:02] [%clk 00:03:03]} 14. Nf2 {[%emt 00:00:03] [%clk 00:01:11]}
Rxb2 {[%emt 00:00:02] [%clk 00:03:04]} 15. Nxd3 {[%emt 00:00:52] [%clk
00:00:20]} Qe4+ {[%emt 00:00:02] [%clk 00:03:04]} 16. Be3 {[%emt 00:00:01] [%clk
00:00:21]} Qxe3+ {[%emt 00:00:02] [%clk 00:03:04]} 17. Kf1 {[%clk 00:00:23]} Rd2
{[%emt 00:00:01] [%clk 00:03:05]} 18. Qf3 {[%emt 00:00:08] [%clk 00:00:16]}
Qxf3+ {[%emt 00:00:05] [%clk 00:03:03]} 19. gxf3 {[%emt 00:00:01] [%clk
00:00:17]} Rxd3 {[%emt 00:00:01] [%clk 00:03:03]} 20. dxc6 {[%emt 00:00:01]
[%clk 00:00:19]} dxc6 {[%emt 00:00:03] [%clk 00:03:02]} 21. Ke2 {[%clk
00:00:20]} Rd5 {[%emt 00:00:13] [%clk 00:02:51]} 22. Rab1 {[%emt 00:00:02] [%clk
00:00:19]} Bc5 {[%emt 00:00:05] [%clk 00:02:48]} 23. Rb8+ {[%emt 00:00:03] [%clk
00:00:19]} Rd8 {[%emt 00:00:01] [%clk 00:02:49]} 24. Rxd8+ {[%emt 00:00:06]
[%clk 00:00:15]} Kxd8 {[%emt 00:00:02] [%clk 00:02:49]} 25. Rc1 {[%emt 00:00:01]
[%clk 00:00:15]} Bxa3 {[%emt 00:00:03] [%clk 00:02:49]} 26. Rxc6 {[%emt
00:00:01] [%clk 00:00:16]} Kd7 {[%emt 00:00:03] [%clk 00:02:48]} 0-1

[Site "Europe Echecs"]

[Event "Championnat d'Europe de Blitz"]
[Date "2024.12.09"]
[White "Dobrikov, Marco"]
[Black "Ragger, Markus"]
[WhiteElo "2407"]
[BlackElo "2577"]
[Round "3.24"]
[Result "0-1"]
[TimeControl "180+2"]

1. Nf3 {[%emt 00:05:38] [%clk 00:03:03]} Nf6 {[%emt 00:00:02] [%clk 00:03:03]}
2. d4 {[%clk 00:03:04]} g6 {[%clk 00:03:04]} 3. c4 {[%clk 00:03:05]} Bg7 {[%emt
00:00:01] [%clk 00:03:05]} 4. Nc3 {[%clk 00:03:06]} d5 {[%clk 00:03:06]} 5. Qb3
{[%emt 00:00:05] [%clk 00:03:04]} dxc4 {[%emt 00:00:02] [%clk 00:03:05]} 6. Qxc4
{[%emt 00:00:02] [%clk 00:03:05]} Be6 {[%clk 00:03:06]} 7. Qd3 {[%emt 00:00:10]
[%clk 00:02:57]} c5 {[%emt 00:00:06] [%clk 00:03:02]} 8. e4 {[%emt 00:00:24]
[%clk 00:02:35]} cxd4 {[%emt 00:00:01] [%clk 00:03:03]} 9. Nxd4 {[%emt 00:00:02]
[%clk 00:02:35]} Bd7 {[%emt 00:00:01] [%clk 00:03:03]} 10. Be2 {[%emt 00:00:07]
[%clk 00:02:31]} Nc6 {[%emt 00:00:07] [%clk 00:02:58]} 11. Nxc6 {[%emt 00:00:24]
[%clk 00:02:09]} Bxc6 {[%emt 00:00:01] [%clk 00:02:59]} 12. Qxd8+ {[%emt
00:00:01] [%clk 00:02:10]} Rxd8 {[%emt 00:00:05] [%clk 00:02:56]} 13. f3 {[%emt
00:00:01] [%clk 00:02:11]} Nd7 {[%emt 00:00:17] [%clk 00:02:41]} 14. Be3 {[%emt
00:00:03] [%clk 00:02:09]} a6 {[%emt 00:00:02] [%clk 00:02:42]} 15. Kf2 {[%emt
00:00:08] [%clk 00:02:03]} O-O {[%emt 00:00:16] [%clk 00:02:28]} 16. Rac1 {[%emt
00:00:02] [%clk 00:02:02]} f5 {[%emt 00:00:02] [%clk 00:02:28]} 17. exf5 {[%emt
00:00:21] [%clk 00:01:44]} gxf5 {[%emt 00:00:06] [%clk 00:02:23]} 18. Rhd1
{[%emt 00:00:08] [%clk 00:01:38]} f4 {[%emt 00:00:17] [%clk 00:02:09]} 19. Bd4
{[%emt 00:00:02] [%clk 00:01:37]} e5 {[%emt 00:00:05] [%clk 00:02:07]} 20. Ba7
{[%emt 00:00:15] [%clk 00:01:24]} Ra8 {[%emt 00:00:01] [%clk 00:02:08]} 21. Bc4+
{[%emt 00:00:09] [%clk 00:01:17]} Kh8 {[%emt 00:00:03] [%clk 00:02:07]} 22. Rxd7
{[%emt 00:00:02] [%clk 00:01:17]} Bxd7 {[%emt 00:00:04] [%clk 00:02:05]} 23. Bb6
{[%emt 00:00:07] [%clk 00:01:11]} Rac8 {[%emt 00:00:15] [%clk 00:01:53]} 24. Bd5
{[%emt 00:00:08] [%clk 00:01:05]} Bc6 {[%emt 00:00:02] [%clk 00:01:53]} 25. Rd1
{[%emt 00:00:12] [%clk 00:00:56]} Bxd5 {[%emt 00:00:11] [%clk 00:01:43]} 26.
Rxd5 {[%emt 00:00:01] [%clk 00:00:57]} Rc6 {[%emt 00:00:04] [%clk 00:01:41]} 27.
Bc5 {[%emt 00:00:05] [%clk 00:00:54]} Rfc8 {[%emt 00:00:08] [%clk 00:01:35]} 28.
Ba3 {[%emt 00:00:12] [%clk 00:00:43]} b5 {[%emt 00:00:15] [%clk 00:01:23]} 29.
Ke2 {[%emt 00:00:02] [%clk 00:00:43]} Rc4 {[%emt 00:00:13] [%clk 00:01:12]} 30.
Bd6 {[%emt 00:00:20] [%clk 00:00:25]} Rd4 {[%emt 00:00:01] [%clk 00:01:13]} 31.
Bxe5 {[%emt 00:00:19] [%clk 00:00:08]} Rxd5 {[%emt 00:00:01] [%clk 00:01:13]}
32. Bxg7+ {[%clk 00:00:09]} Kxg7 {[%emt 00:00:01] [%clk 00:01:14]} 33. Nxd5
{[%emt 00:00:03]} Rc2+ {[%emt 00:00:02] [%clk 00:01:12]} 34. Kd3 {[%emt
00:00:02] [%clk 00:00:11]} Rxg2 {[%emt 00:00:07] [%clk 00:01:07]} 35. Nxf4
{[%emt 00:00:07] [%clk 00:00:06]} Rxb2 {[%emt 00:00:05] [%clk 00:01:04]} 36. Kd4
{[%emt 00:00:05] [%clk 00:00:00]} 0-1

[Site "Europe Echecs"]